{"text_format":"3","workbook":"xlsx","n_sheets":2,"sheets":["Δεδομένα υποψηφίου","Συγκριτικά δεδομένα υποψηφίων"],"not_rendered":{"defined_names":4},"read":"whole","date_system":"1900"}

{"sheet":"Δεδομένα υποψηφίου","index":0,"n_rows":2,"n_cols":13,"rows_kept":2,"merged":[[0,0,0,3]]}
["Δεδομένα υποψηφίου"]
["Επώνυμο","Όνομα","Πατρώνυμο","Θέση εργασίας","Κατάσταση αίτησης","Διεύθυνση αλληλογραφίας","Τηλέφωνο οικίας","Δεύτερο τηλέφωνο","Διεύθυνση ηλεκτρονικού ταχυδρομείου","Προέλευση αίτησης","Ημ/νία λήψης βιογραφικού σημειώματος","Όνομα υπευθύνου πρόσληψης","Σημειώσεις υπευθύνου πρόσληψης"]

{"sheet":"Συγκριτικά δεδομένα υποψηφίων","index":1,"n_rows":59,"n_cols":12,"rows_kept":59,"merged":[[0,0,0,3]]}
["Συγκριτικά δεδομένα υποψηφίων"]
["Επώνυμο","Όνομα","Πατρώνυμο","Θέση εργασίας","Τρέχων εργοδότης","Τρέχουσα θέση","Εκπαίδευση","Άδεια παραμονής/Βίζα","Έτη σχετικής εμπειρίας","Σχετικές γνώσεις ή εμπειρία","Όνομα υπευθύνου πρόσληψης","Σημειώσεις υπευθύνου πρόσληψης"]
[{"$f":"IF('Δεδομένα υποψηφίου'!A3=\"\",\"\",'Δεδομένα υποψηφίου'!A3)","v":""},{"$f":"IF('Δεδομένα υποψηφίου'!B3=\"\",\"\",'Δεδομένα υποψηφίου'!B3)","v":""},{"$f":"IF('Δεδομένα υποψηφίου'!C3=\"\",\"\",'Δεδομένα υποψηφίου'!C3)","v":""},{"$f":"IF('Δεδομένα υποψηφίου'!D3=\"\",\"\",'Δεδομένα υποψηφίου'!D3)","v":""},{"$nulls":6},{"$f":"IF('Δεδομένα υποψηφίου'!L3=\"\",\"\",'Δεδομένα υποψηφίου'!L3)","v":""},{"$f":"IF('Δεδομένα υποψηφίου'!M3=\"\",\"\",'Δεδομένα υποψηφίου'!M3)","v":""}]
[{"$f":"IF('Δεδομένα υποψηφίου'!A4=\"\",\"\",'Δεδομένα υποψηφίου'!A4)","v":""},{"$f":"IF('Δεδομένα υποψηφίου'!B4=\"\",\"\",'Δεδομένα υποψηφίου'!B4)","v":""},{"$f":"IF('Δεδομένα υποψηφίου'!C4=\"\",\"\",'Δεδομένα υποψηφίου'!C4)","v":""},{"$f":"IF('Δεδομένα υποψηφίου'!D4=\"\",\"\",'Δεδομένα υποψηφίου'!D4)","v":""},{"$nulls":6},{"$f":"IF('Δεδομένα υποψηφίου'!L4=\"\",\"\",'Δεδομένα υποψηφίου'!L4)","v":""},{"$f":"IF('Δεδομένα υποψηφίου'!M4=\"\",\"\",'Δεδομένα υποψηφίου'!M4)","v":""}]
[{"$f":"IF('Δεδομένα υποψηφίου'!A5=\"\",\"\",'Δεδομένα υποψηφίου'!A5)","v":""},{"$f":"IF('Δεδομένα υποψηφίου'!B5=\"\",\"\",'Δεδομένα υποψηφίου'!B5)","v":""},{"$f":"IF('Δεδομένα υποψηφίου'!C5=\"\",\"\",'Δεδομένα υποψηφίου'!C5)","v":""},{"$f":"IF('Δεδομένα υποψηφίου'!D5=\"\",\"\",'Δεδομένα υποψηφίου'!D5)","v":""},{"$nulls":6},{"$f":"IF('Δεδομένα υποψηφίου'!L5=\"\",\"\",'Δεδομένα υποψηφίου'!L5)","v":""},{"$f":"IF('Δεδομένα υποψηφίου'!M5=\"\",\"\",'Δεδομένα υποψηφίου'!M5)","v":""}]
[{"$f":"IF('Δεδομένα υποψηφίου'!A6=\"\",\"\",'Δεδομένα υποψηφίου'!A6)","v":""},{"$f":"IF('Δεδομένα υποψηφίου'!B6=\"\",\"\",'Δεδομένα υποψηφίου'!B6)","v":""},{"$f":"IF('Δεδομένα υποψηφίου'!C6=\"\",\"\",'Δεδομένα υποψηφίου'!C6)","v":""},{"$f":"IF('Δεδομένα υποψηφίου'!D6=\"\",\"\",'Δεδομένα υποψηφίου'!D6)","v":""},{"$nulls":6},{"$f":"IF('Δεδομένα υποψηφίου'!L6=\"\",\"\",'Δεδομένα υποψηφίου'!L6)","v":""},{"$f":"IF('Δεδομένα υποψηφίου'!M6=\"\",\"\",'Δεδομένα υποψηφίου'!M6)","v":""}]
[{"$f":"IF('Δεδομένα υποψηφίου'!A7=\"\",\"\",'Δεδομένα υποψηφίου'!A7)","v":""},{"$f":"IF('Δεδομένα υποψηφίου'!B7=\"\",\"\",'Δεδομένα υποψηφίου'!B7)","v":""},{"$f":"IF('Δεδομένα υποψηφίου'!C7=\"\",\"\",'Δεδομένα υποψηφίου'!C7)","v":""},{"$f":"IF('Δεδομένα υποψηφίου'!D7=\"\",\"\",'Δεδομένα υποψηφίου'!D7)","v":""},{"$nulls":6},{"$f":"IF('Δεδομένα υποψηφίου'!L7=\"\",\"\",'Δεδομένα υποψηφίου'!L7)","v":""},{"$f":"IF('Δεδομένα υποψηφίου'!M7=\"\",\"\",'Δεδομένα υποψηφίου'!M7)","v":""}]
[{"$f":"IF('Δεδομένα υποψηφίου'!A8=\"\",\"\",'Δεδομένα υποψηφίου'!A8)","v":""},{"$f":"IF('Δεδομένα υποψηφίου'!B8=\"\",\"\",'Δεδομένα υποψηφίου'!B8)","v":""},{"$f":"IF('Δεδομένα υποψηφίου'!C8=\"\",\"\",'Δεδομένα υποψηφίου'!C8)","v":""},{"$f":"IF('Δεδομένα υποψηφίου'!D8=\"\",\"\",'Δεδομένα υποψηφίου'!D8)","v":""},{"$nulls":6},{"$f":"IF('Δεδομένα υποψηφίου'!L8=\"\",\"\",'Δεδομένα υποψηφίου'!L8)","v":""},{"$f":"IF('Δεδομένα υποψηφίου'!M8=\"\",\"\",'Δεδομένα υποψηφίου'!M8)","v":""}]
[{"$f":"IF('Δεδομένα υποψηφίου'!A9=\"\",\"\",'Δεδομένα υποψηφίου'!A9)","v":""},{"$f":"IF('Δεδομένα υποψηφίου'!B9=\"\",\"\",'Δεδομένα υποψηφίου'!B9)","v":""},{"$f":"IF('Δεδομένα υποψηφίου'!C9=\"\",\"\",'Δεδομένα υποψηφίου'!C9)","v":""},{"$f":"IF('Δεδομένα υποψηφίου'!D9=\"\",\"\",'Δεδομένα υποψηφίου'!D9)","v":""},{"$nulls":6},{"$f":"IF('Δεδομένα υποψηφίου'!L9=\"\",\"\",'Δεδομένα υποψηφίου'!L9)","v":""},{"$f":"IF('Δεδομένα υποψηφίου'!M9=\"\",\"\",'Δεδομένα υποψηφίου'!M9)","v":""}]
[{"$f":"IF('Δεδομένα υποψηφίου'!A10=\"\",\"\",'Δεδομένα υποψηφίου'!A10)","v":""},{"$f":"IF('Δεδομένα υποψηφίου'!B10=\"\",\"\",'Δεδομένα υποψηφίου'!B10)","v":""},{"$f":"IF('Δεδομένα υποψηφίου'!C10=\"\",\"\",'Δεδομένα υποψηφίου'!C10)","v":""},{"$f":"IF('Δεδομένα υποψηφίου'!D10=\"\",\"\",'Δεδομένα υποψηφίου'!D10)","v":""},{"$nulls":6},{"$f":"IF('Δεδομένα υποψηφίου'!L10=\"\",\"\",'Δεδομένα υποψηφίου'!L10)","v":""},{"$f":"IF('Δεδομένα υποψηφίου'!M10=\"\",\"\",'Δεδομένα υποψηφίου'!M10)","v":""}]
[{"$f":"IF('Δεδομένα υποψηφίου'!A11=\"\",\"\",'Δεδομένα υποψηφίου'!A11)","v":""},{"$f":"IF('Δεδομένα υποψηφίου'!B11=\"\",\"\",'Δεδομένα υποψηφίου'!B11)","v":""},{"$f":"IF('Δεδομένα υποψηφίου'!C11=\"\",\"\",'Δεδομένα υποψηφίου'!C11)","v":""},{"$f":"IF('Δεδομένα υποψηφίου'!D11=\"\",\"\",'Δεδομένα υποψηφίου'!D11)","v":""},{"$nulls":6},{"$f":"IF('Δεδομένα υποψηφίου'!L11=\"\",\"\",'Δεδομένα υποψηφίου'!L11)","v":""},{"$f":"IF('Δεδομένα υποψηφίου'!M11=\"\",\"\",'Δεδομένα υποψηφίου'!M11)","v":""}]
[{"$f":"IF('Δεδομένα υποψηφίου'!A12=\"\",\"\",'Δεδομένα υποψηφίου'!A12)","v":""},{"$f":"IF('Δεδομένα υποψηφίου'!B12=\"\",\"\",'Δεδομένα υποψηφίου'!B12)","v":""},{"$f":"IF('Δεδομένα υποψηφίου'!C12=\"\",\"\",'Δεδομένα υποψηφίου'!C12)","v":""},{"$f":"IF('Δεδομένα υποψηφίου'!D12=\"\",\"\",'Δεδομένα υποψηφίου'!D12)","v":""},{"$nulls":6},{"$f":"IF('Δεδομένα υποψηφίου'!L12=\"\",\"\",'Δεδομένα υποψηφίου'!L12)","v":""},{"$f":"IF('Δεδομένα υποψηφίου'!M12=\"\",\"\",'Δεδομένα υποψηφίου'!M12)","v":""}]
[{"$f":"IF('Δεδομένα υποψηφίου'!A13=\"\",\"\",'Δεδομένα υποψηφίου'!A13)","v":""},{"$f":"IF('Δεδομένα υποψηφίου'!B13=\"\",\"\",'Δεδομένα υποψηφίου'!B13)","v":""},{"$f":"IF('Δεδομένα υποψηφίου'!C13=\"\",\"\",'Δεδομένα υποψηφίου'!C13)","v":""},{"$f":"IF('Δεδομένα υποψηφίου'!D13=\"\",\"\",'Δεδομένα υποψηφίου'!D13)","v":""},{"$nulls":6},{"$f":"IF('Δεδομένα υποψηφίου'!L13=\"\",\"\",'Δεδομένα υποψηφίου'!L13)","v":""},{"$f":"IF('Δεδομένα υποψηφίου'!M13=\"\",\"\",'Δεδομένα υποψηφίου'!M13)","v":""}]
[{"$f":"IF('Δεδομένα υποψηφίου'!A14=\"\",\"\",'Δεδομένα υποψηφίου'!A14)","v":""},{"$f":"IF('Δεδομένα υποψηφίου'!B14=\"\",\"\",'Δεδομένα υποψηφίου'!B14)","v":""},{"$f":"IF('Δεδομένα υποψηφίου'!C14=\"\",\"\",'Δεδομένα υποψηφίου'!C14)","v":""},{"$f":"IF('Δεδομένα υποψηφίου'!D14=\"\",\"\",'Δεδομένα υποψηφίου'!D14)","v":""},{"$nulls":6},{"$f":"IF('Δεδομένα υποψηφίου'!L14=\"\",\"\",'Δεδομένα υποψηφίου'!L14)","v":""},{"$f":"IF('Δεδομένα υποψηφίου'!M14=\"\",\"\",'Δεδομένα υποψηφίου'!M14)","v":""}]
[{"$f":"IF('Δεδομένα υποψηφίου'!A15=\"\",\"\",'Δεδομένα υποψηφίου'!A15)","v":""},{"$f":"IF('Δεδομένα υποψηφίου'!B15=\"\",\"\",'Δεδομένα υποψηφίου'!B15)","v":""},{"$f":"IF('Δεδομένα υποψηφίου'!C15=\"\",\"\",'Δεδομένα υποψηφίου'!C15)","v":""},{"$f":"IF('Δεδομένα υποψηφίου'!D15=\"\",\"\",'Δεδομένα υποψηφίου'!D15)","v":""},{"$nulls":6},{"$f":"IF('Δεδομένα υποψηφίου'!L15=\"\",\"\",'Δεδομένα υποψηφίου'!L15)","v":""},{"$f":"IF('Δεδομένα υποψηφίου'!M15=\"\",\"\",'Δεδομένα υποψηφίου'!M15)","v":""}]
[{"$f":"IF('Δεδομένα υποψηφίου'!A16=\"\",\"\",'Δεδομένα υποψηφίου'!A16)","v":""},{"$f":"IF('Δεδομένα υποψηφίου'!B16=\"\",\"\",'Δεδομένα υποψηφίου'!B16)","v":""},{"$f":"IF('Δεδομένα υποψηφίου'!C16=\"\",\"\",'Δεδομένα υποψηφίου'!C16)","v":""},{"$f":"IF('Δεδομένα υποψηφίου'!D16=\"\",\"\",'Δεδομένα υποψηφίου'!D16)","v":""},{"$nulls":6},{"$f":"IF('Δεδομένα υποψηφίου'!L16=\"\",\"\",'Δεδομένα υποψηφίου'!L16)","v":""},{"$f":"IF('Δεδομένα υποψηφίου'!M16=\"\",\"\",'Δεδομένα υποψηφίου'!M16)","v":""}]
[{"$f":"IF('Δεδομένα υποψηφίου'!A17=\"\",\"\",'Δεδομένα υποψηφίου'!A17)","v":""},{"$f":"IF('Δεδομένα υποψηφίου'!B17=\"\",\"\",'Δεδομένα υποψηφίου'!B17)","v":""},{"$f":"IF('Δεδομένα υποψηφίου'!C17=\"\",\"\",'Δεδομένα υποψηφίου'!C17)","v":""},{"$f":"IF('Δεδομένα υποψηφίου'!D17=\"\",\"\",'Δεδομένα υποψηφίου'!D17)","v":""},{"$nulls":6},{"$f":"IF('Δεδομένα υποψηφίου'!L17=\"\",\"\",'Δεδομένα υποψηφίου'!L17)","v":""},{"$f":"IF('Δεδομένα υποψηφίου'!M17=\"\",\"\",'Δεδομένα υποψηφίου'!M17)","v":""}]
[{"$f":"IF('Δεδομένα υποψηφίου'!A18=\"\",\"\",'Δεδομένα υποψηφίου'!A18)","v":""},{"$f":"IF('Δεδομένα υποψηφίου'!B18=\"\",\"\",'Δεδομένα υποψηφίου'!B18)","v":""},{"$f":"IF('Δεδομένα υποψηφίου'!C18=\"\",\"\",'Δεδομένα υποψηφίου'!C18)","v":""},{"$f":"IF('Δεδομένα υποψηφίου'!D18=\"\",\"\",'Δεδομένα υποψηφίου'!D18)","v":""},{"$nulls":6},{"$f":"IF('Δεδομένα υποψηφίου'!L18=\"\",\"\",'Δεδομένα υποψηφίου'!L18)","v":""},{"$f":"IF('Δεδομένα υποψηφίου'!M18=\"\",\"\",'Δεδομένα υποψηφίου'!M18)","v":""}]
[{"$f":"IF('Δεδομένα υποψηφίου'!A19=\"\",\"\",'Δεδομένα υποψηφίου'!A19)","v":""},{"$f":"IF('Δεδομένα υποψηφίου'!B19=\"\",\"\",'Δεδομένα υποψηφίου'!B19)","v":""},{"$f":"IF('Δεδομένα υποψηφίου'!C19=\"\",\"\",'Δεδομένα υποψηφίου'!C19)","v":""},{"$f":"IF('Δεδομένα υποψηφίου'!D19=\"\",\"\",'Δεδομένα υποψηφίου'!D19)","v":""},{"$nulls":6},{"$f":"IF('Δεδομένα υποψηφίου'!L19=\"\",\"\",'Δεδομένα υποψηφίου'!L19)","v":""},{"$f":"IF('Δεδομένα υποψηφίου'!M19=\"\",\"\",'Δεδομένα υποψηφίου'!M19)","v":""}]
[{"$f":"IF('Δεδομένα υποψηφίου'!A20=\"\",\"\",'Δεδομένα υποψηφίου'!A20)","v":""},{"$f":"IF('Δεδομένα υποψηφίου'!B20=\"\",\"\",'Δεδομένα υποψηφίου'!B20)","v":""},{"$f":"IF('Δεδομένα υποψηφίου'!C20=\"\",\"\",'Δεδομένα υποψηφίου'!C20)","v":""},{"$f":"IF('Δεδομένα υποψηφίου'!D20=\"\",\"\",'Δεδομένα υποψηφίου'!D20)","v":""},{"$nulls":6},{"$f":"IF('Δεδομένα υποψηφίου'!L20=\"\",\"\",'Δεδομένα υποψηφίου'!L20)","v":""},{"$f":"IF('Δεδομένα υποψηφίου'!M20=\"\",\"\",'Δεδομένα υποψηφίου'!M20)","v":""}]
[{"$f":"IF('Δεδομένα υποψηφίου'!A21=\"\",\"\",'Δεδομένα υποψηφίου'!A21)","v":""},{"$f":"IF('Δεδομένα υποψηφίου'!B21=\"\",\"\",'Δεδομένα υποψηφίου'!B21)","v":""},{"$f":"IF('Δεδομένα υποψηφίου'!C21=\"\",\"\",'Δεδομένα υποψηφίου'!C21)","v":""},{"$f":"IF('Δεδομένα υποψηφίου'!D21=\"\",\"\",'Δεδομένα υποψηφίου'!D21)","v":""},{"$nulls":6},{"$f":"IF('Δεδομένα υποψηφίου'!L21=\"\",\"\",'Δεδομένα υποψηφίου'!L21)","v":""},{"$f":"IF('Δεδομένα υποψηφίου'!M21=\"\",\"\",'Δεδομένα υποψηφίου'!M21)","v":""}]
[{"$f":"IF('Δεδομένα υποψηφίου'!A22=\"\",\"\",'Δεδομένα υποψηφίου'!A22)","v":""},{"$f":"IF('Δεδομένα υποψηφίου'!B22=\"\",\"\",'Δεδομένα υποψηφίου'!B22)","v":""},{"$f":"IF('Δεδομένα υποψηφίου'!C22=\"\",\"\",'Δεδομένα υποψηφίου'!C22)","v":""},{"$f":"IF('Δεδομένα υποψηφίου'!D22=\"\",\"\",'Δεδομένα υποψηφίου'!D22)","v":""},{"$nulls":6},{"$f":"IF('Δεδομένα υποψηφίου'!L22=\"\",\"\",'Δεδομένα υποψηφίου'!L22)","v":""},{"$f":"IF('Δεδομένα υποψηφίου'!M22=\"\",\"\",'Δεδομένα υποψηφίου'!M22)","v":""}]
[{"$f":"IF('Δεδομένα υποψηφίου'!A23=\"\",\"\",'Δεδομένα υποψηφίου'!A23)","v":""},{"$f":"IF('Δεδομένα υποψηφίου'!B23=\"\",\"\",'Δεδομένα υποψηφίου'!B23)","v":""},{"$f":"IF('Δεδομένα υποψηφίου'!C23=\"\",\"\",'Δεδομένα υποψηφίου'!C23)","v":""},{"$f":"IF('Δεδομένα υποψηφίου'!D23=\"\",\"\",'Δεδομένα υποψηφίου'!D23)","v":""},{"$nulls":6},{"$f":"IF('Δεδομένα υποψηφίου'!L23=\"\",\"\",'Δεδομένα υποψηφίου'!L23)","v":""},{"$f":"IF('Δεδομένα υποψηφίου'!M23=\"\",\"\",'Δεδομένα υποψηφίου'!M23)","v":""}]
[{"$f":"IF('Δεδομένα υποψηφίου'!A24=\"\",\"\",'Δεδομένα υποψηφίου'!A24)","v":""},{"$f":"IF('Δεδομένα υποψηφίου'!B24=\"\",\"\",'Δεδομένα υποψηφίου'!B24)","v":""},{"$f":"IF('Δεδομένα υποψηφίου'!C24=\"\",\"\",'Δεδομένα υποψηφίου'!C24)","v":""},{"$f":"IF('Δεδομένα υποψηφίου'!D24=\"\",\"\",'Δεδομένα υποψηφίου'!D24)","v":""},{"$nulls":6},{"$f":"IF('Δεδομένα υποψηφίου'!L24=\"\",\"\",'Δεδομένα υποψηφίου'!L24)","v":""},{"$f":"IF('Δεδομένα υποψηφίου'!M24=\"\",\"\",'Δεδομένα υποψηφίου'!M24)","v":""}]
[{"$f":"IF('Δεδομένα υποψηφίου'!A25=\"\",\"\",'Δεδομένα υποψηφίου'!A25)","v":""},{"$f":"IF('Δεδομένα υποψηφίου'!B25=\"\",\"\",'Δεδομένα υποψηφίου'!B25)","v":""},{"$f":"IF('Δεδομένα υποψηφίου'!C25=\"\",\"\",'Δεδομένα υποψηφίου'!C25)","v":""},{"$f":"IF('Δεδομένα υποψηφίου'!D25=\"\",\"\",'Δεδομένα υποψηφίου'!D25)","v":""},{"$nulls":6},{"$f":"IF('Δεδομένα υποψηφίου'!L25=\"\",\"\",'Δεδομένα υποψηφίου'!L25)","v":""},{"$f":"IF('Δεδομένα υποψηφίου'!M25=\"\",\"\",'Δεδομένα υποψηφίου'!M25)","v":""}]
[{"$f":"IF('Δεδομένα υποψηφίου'!A26=\"\",\"\",'Δεδομένα υποψηφίου'!A26)","v":""},{"$f":"IF('Δεδομένα υποψηφίου'!B26=\"\",\"\",'Δεδομένα υποψηφίου'!B26)","v":""},{"$f":"IF('Δεδομένα υποψηφίου'!C26=\"\",\"\",'Δεδομένα υποψηφίου'!C26)","v":""},{"$f":"IF('Δεδομένα υποψηφίου'!D26=\"\",\"\",'Δεδομένα υποψηφίου'!D26)","v":""},{"$nulls":6},{"$f":"IF('Δεδομένα υποψηφίου'!L26=\"\",\"\",'Δεδομένα υποψηφίου'!L26)","v":""},{"$f":"IF('Δεδομένα υποψηφίου'!M26=\"\",\"\",'Δεδομένα υποψηφίου'!M26)","v":""}]
[{"$f":"IF('Δεδομένα υποψηφίου'!A27=\"\",\"\",'Δεδομένα υποψηφίου'!A27)","v":""},{"$f":"IF('Δεδομένα υποψηφίου'!B27=\"\",\"\",'Δεδομένα υποψηφίου'!B27)","v":""},{"$f":"IF('Δεδομένα υποψηφίου'!C27=\"\",\"\",'Δεδομένα υποψηφίου'!C27)","v":""},{"$f":"IF('Δεδομένα υποψηφίου'!D27=\"\",\"\",'Δεδομένα υποψηφίου'!D27)","v":""},{"$nulls":6},{"$f":"IF('Δεδομένα υποψηφίου'!L27=\"\",\"\",'Δεδομένα υποψηφίου'!L27)","v":""},{"$f":"IF('Δεδομένα υποψηφίου'!M27=\"\",\"\",'Δεδομένα υποψηφίου'!M27)","v":""}]
[{"$f":"IF('Δεδομένα υποψηφίου'!A28=\"\",\"\",'Δεδομένα υποψηφίου'!A28)","v":""},{"$f":"IF('Δεδομένα υποψηφίου'!B28=\"\",\"\",'Δεδομένα υποψηφίου'!B28)","v":""},{"$f":"IF('Δεδομένα υποψηφίου'!C28=\"\",\"\",'Δεδομένα υποψηφίου'!C28)","v":""},{"$f":"IF('Δεδομένα υποψηφίου'!D28=\"\",\"\",'Δεδομένα υποψηφίου'!D28)","v":""},{"$nulls":6},{"$f":"IF('Δεδομένα υποψηφίου'!L28=\"\",\"\",'Δεδομένα υποψηφίου'!L28)","v":""},{"$f":"IF('Δεδομένα υποψηφίου'!M28=\"\",\"\",'Δεδομένα υποψηφίου'!M28)","v":""}]
[{"$f":"IF('Δεδομένα υποψηφίου'!A29=\"\",\"\",'Δεδομένα υποψηφίου'!A29)","v":""},{"$f":"IF('Δεδομένα υποψηφίου'!B29=\"\",\"\",'Δεδομένα υποψηφίου'!B29)","v":""},{"$f":"IF('Δεδομένα υποψηφίου'!C29=\"\",\"\",'Δεδομένα υποψηφίου'!C29)","v":""},{"$f":"IF('Δεδομένα υποψηφίου'!D29=\"\",\"\",'Δεδομένα υποψηφίου'!D29)","v":""},{"$nulls":6},{"$f":"IF('Δεδομένα υποψηφίου'!L29=\"\",\"\",'Δεδομένα υποψηφίου'!L29)","v":""},{"$f":"IF('Δεδομένα υποψηφίου'!M29=\"\",\"\",'Δεδομένα υποψηφίου'!M29)","v":""}]
[{"$f":"IF('Δεδομένα υποψηφίου'!A30=\"\",\"\",'Δεδομένα υποψηφίου'!A30)","v":""},{"$f":"IF('Δεδομένα υποψηφίου'!B30=\"\",\"\",'Δεδομένα υποψηφίου'!B30)","v":""},{"$f":"IF('Δεδομένα υποψηφίου'!C30=\"\",\"\",'Δεδομένα υποψηφίου'!C30)","v":""},{"$f":"IF('Δεδομένα υποψηφίου'!D30=\"\",\"\",'Δεδομένα υποψηφίου'!D30)","v":""},{"$nulls":6},{"$f":"IF('Δεδομένα υποψηφίου'!L30=\"\",\"\",'Δεδομένα υποψηφίου'!L30)","v":""},{"$f":"IF('Δεδομένα υποψηφίου'!M30=\"\",\"\",'Δεδομένα υποψηφίου'!M30)","v":""}]
[{"$f":"IF('Δεδομένα υποψηφίου'!A31=\"\",\"\",'Δεδομένα υποψηφίου'!A31)","v":""},{"$f":"IF('Δεδομένα υποψηφίου'!B31=\"\",\"\",'Δεδομένα υποψηφίου'!B31)","v":""},{"$f":"IF('Δεδομένα υποψηφίου'!C31=\"\",\"\",'Δεδομένα υποψηφίου'!C31)","v":""},{"$f":"IF('Δεδομένα υποψηφίου'!D31=\"\",\"\",'Δεδομένα υποψηφίου'!D31)","v":""},{"$nulls":6},{"$f":"IF('Δεδομένα υποψηφίου'!L31=\"\",\"\",'Δεδομένα υποψηφίου'!L31)","v":""},{"$f":"IF('Δεδομένα υποψηφίου'!M31=\"\",\"\",'Δεδομένα υποψηφίου'!M31)","v":""}]
[{"$f":"IF('Δεδομένα υποψηφίου'!A32=\"\",\"\",'Δεδομένα υποψηφίου'!A32)","v":""},{"$f":"IF('Δεδομένα υποψηφίου'!B32=\"\",\"\",'Δεδομένα υποψηφίου'!B32)","v":""},{"$f":"IF('Δεδομένα υποψηφίου'!C32=\"\",\"\",'Δεδομένα υποψηφίου'!C32)","v":""},{"$f":"IF('Δεδομένα υποψηφίου'!D32=\"\",\"\",'Δεδομένα υποψηφίου'!D32)","v":""},{"$nulls":6},{"$f":"IF('Δεδομένα υποψηφίου'!L32=\"\",\"\",'Δεδομένα υποψηφίου'!L32)","v":""},{"$f":"IF('Δεδομένα υποψηφίου'!M32=\"\",\"\",'Δεδομένα υποψηφίου'!M32)","v":""}]
[{"$f":"IF('Δεδομένα υποψηφίου'!A33=\"\",\"\",'Δεδομένα υποψηφίου'!A33)","v":""},{"$f":"IF('Δεδομένα υποψηφίου'!B33=\"\",\"\",'Δεδομένα υποψηφίου'!B33)","v":""},{"$f":"IF('Δεδομένα υποψηφίου'!C33=\"\",\"\",'Δεδομένα υποψηφίου'!C33)","v":""},{"$f":"IF('Δεδομένα υποψηφίου'!D33=\"\",\"\",'Δεδομένα υποψηφίου'!D33)","v":""},{"$nulls":6},{"$f":"IF('Δεδομένα υποψηφίου'!L33=\"\",\"\",'Δεδομένα υποψηφίου'!L33)","v":""},{"$f":"IF('Δεδομένα υποψηφίου'!M33=\"\",\"\",'Δεδομένα υποψηφίου'!M33)","v":""}]
[{"$f":"IF('Δεδομένα υποψηφίου'!A34=\"\",\"\",'Δεδομένα υποψηφίου'!A34)","v":""},{"$f":"IF('Δεδομένα υποψηφίου'!B34=\"\",\"\",'Δεδομένα υποψηφίου'!B34)","v":""},{"$f":"IF('Δεδομένα υποψηφίου'!C34=\"\",\"\",'Δεδομένα υποψηφίου'!C34)","v":""},{"$f":"IF('Δεδομένα υποψηφίου'!D34=\"\",\"\",'Δεδομένα υποψηφίου'!D34)","v":""},{"$nulls":6},{"$f":"IF('Δεδομένα υποψηφίου'!L34=\"\",\"\",'Δεδομένα υποψηφίου'!L34)","v":""},{"$f":"IF('Δεδομένα υποψηφίου'!M34=\"\",\"\",'Δεδομένα υποψηφίου'!M34)","v":""}]
[{"$f":"IF('Δεδομένα υποψηφίου'!A35=\"\",\"\",'Δεδομένα υποψηφίου'!A35)","v":""},{"$f":"IF('Δεδομένα υποψηφίου'!B35=\"\",\"\",'Δεδομένα υποψηφίου'!B35)","v":""},{"$f":"IF('Δεδομένα υποψηφίου'!C35=\"\",\"\",'Δεδομένα υποψηφίου'!C35)","v":""},{"$f":"IF('Δεδομένα υποψηφίου'!D35=\"\",\"\",'Δεδομένα υποψηφίου'!D35)","v":""},{"$nulls":6},{"$f":"IF('Δεδομένα υποψηφίου'!L35=\"\",\"\",'Δεδομένα υποψηφίου'!L35)","v":""},{"$f":"IF('Δεδομένα υποψηφίου'!M35=\"\",\"\",'Δεδομένα υποψηφίου'!M35)","v":""}]
[{"$f":"IF('Δεδομένα υποψηφίου'!A36=\"\",\"\",'Δεδομένα υποψηφίου'!A36)","v":""},{"$f":"IF('Δεδομένα υποψηφίου'!B36=\"\",\"\",'Δεδομένα υποψηφίου'!B36)","v":""},{"$f":"IF('Δεδομένα υποψηφίου'!C36=\"\",\"\",'Δεδομένα υποψηφίου'!C36)","v":""},{"$f":"IF('Δεδομένα υποψηφίου'!D36=\"\",\"\",'Δεδομένα υποψηφίου'!D36)","v":""},{"$nulls":6},{"$f":"IF('Δεδομένα υποψηφίου'!L36=\"\",\"\",'Δεδομένα υποψηφίου'!L36)","v":""},{"$f":"IF('Δεδομένα υποψηφίου'!M36=\"\",\"\",'Δεδομένα υποψηφίου'!M36)","v":""}]
[{"$f":"IF('Δεδομένα υποψηφίου'!A37=\"\",\"\",'Δεδομένα υποψηφίου'!A37)","v":""},{"$f":"IF('Δεδομένα υποψηφίου'!B37=\"\",\"\",'Δεδομένα υποψηφίου'!B37)","v":""},{"$f":"IF('Δεδομένα υποψηφίου'!C37=\"\",\"\",'Δεδομένα υποψηφίου'!C37)","v":""},{"$f":"IF('Δεδομένα υποψηφίου'!D37=\"\",\"\",'Δεδομένα υποψηφίου'!D37)","v":""},{"$nulls":6},{"$f":"IF('Δεδομένα υποψηφίου'!L37=\"\",\"\",'Δεδομένα υποψηφίου'!L37)","v":""},{"$f":"IF('Δεδομένα υποψηφίου'!M37=\"\",\"\",'Δεδομένα υποψηφίου'!M37)","v":""}]
[{"$f":"IF('Δεδομένα υποψηφίου'!A38=\"\",\"\",'Δεδομένα υποψηφίου'!A38)","v":""},{"$f":"IF('Δεδομένα υποψηφίου'!B38=\"\",\"\",'Δεδομένα υποψηφίου'!B38)","v":""},{"$f":"IF('Δεδομένα υποψηφίου'!C38=\"\",\"\",'Δεδομένα υποψηφίου'!C38)","v":""},{"$f":"IF('Δεδομένα υποψηφίου'!D38=\"\",\"\",'Δεδομένα υποψηφίου'!D38)","v":""},{"$nulls":6},{"$f":"IF('Δεδομένα υποψηφίου'!L38=\"\",\"\",'Δεδομένα υποψηφίου'!L38)","v":""},{"$f":"IF('Δεδομένα υποψηφίου'!M38=\"\",\"\",'Δεδομένα υποψηφίου'!M38)","v":""}]
[{"$f":"IF('Δεδομένα υποψηφίου'!A39=\"\",\"\",'Δεδομένα υποψηφίου'!A39)","v":""},{"$f":"IF('Δεδομένα υποψηφίου'!B39=\"\",\"\",'Δεδομένα υποψηφίου'!B39)","v":""},{"$f":"IF('Δεδομένα υποψηφίου'!C39=\"\",\"\",'Δεδομένα υποψηφίου'!C39)","v":""},{"$f":"IF('Δεδομένα υποψηφίου'!D39=\"\",\"\",'Δεδομένα υποψηφίου'!D39)","v":""},{"$nulls":6},{"$f":"IF('Δεδομένα υποψηφίου'!L39=\"\",\"\",'Δεδομένα υποψηφίου'!L39)","v":""},{"$f":"IF('Δεδομένα υποψηφίου'!M39=\"\",\"\",'Δεδομένα υποψηφίου'!M39)","v":""}]
[{"$f":"IF('Δεδομένα υποψηφίου'!A40=\"\",\"\",'Δεδομένα υποψηφίου'!A40)","v":""},{"$f":"IF('Δεδομένα υποψηφίου'!B40=\"\",\"\",'Δεδομένα υποψηφίου'!B40)","v":""},{"$f":"IF('Δεδομένα υποψηφίου'!C40=\"\",\"\",'Δεδομένα υποψηφίου'!C40)","v":""},{"$f":"IF('Δεδομένα υποψηφίου'!D40=\"\",\"\",'Δεδομένα υποψηφίου'!D40)","v":""},{"$nulls":6},{"$f":"IF('Δεδομένα υποψηφίου'!L40=\"\",\"\",'Δεδομένα υποψηφίου'!L40)","v":""},{"$f":"IF('Δεδομένα υποψηφίου'!M40=\"\",\"\",'Δεδομένα υποψηφίου'!M40)","v":""}]
[{"$f":"IF('Δεδομένα υποψηφίου'!A41=\"\",\"\",'Δεδομένα υποψηφίου'!A41)","v":""},{"$f":"IF('Δεδομένα υποψηφίου'!B41=\"\",\"\",'Δεδομένα υποψηφίου'!B41)","v":""},{"$f":"IF('Δεδομένα υποψηφίου'!C41=\"\",\"\",'Δεδομένα υποψηφίου'!C41)","v":""},{"$f":"IF('Δεδομένα υποψηφίου'!D41=\"\",\"\",'Δεδομένα υποψηφίου'!D41)","v":""},{"$nulls":6},{"$f":"IF('Δεδομένα υποψηφίου'!L41=\"\",\"\",'Δεδομένα υποψηφίου'!L41)","v":""},{"$f":"IF('Δεδομένα υποψηφίου'!M41=\"\",\"\",'Δεδομένα υποψηφίου'!M41)","v":""}]
[{"$f":"IF('Δεδομένα υποψηφίου'!A42=\"\",\"\",'Δεδομένα υποψηφίου'!A42)","v":""},{"$f":"IF('Δεδομένα υποψηφίου'!B42=\"\",\"\",'Δεδομένα υποψηφίου'!B42)","v":""},{"$f":"IF('Δεδομένα υποψηφίου'!C42=\"\",\"\",'Δεδομένα υποψηφίου'!C42)","v":""},{"$f":"IF('Δεδομένα υποψηφίου'!D42=\"\",\"\",'Δεδομένα υποψηφίου'!D42)","v":""},{"$nulls":6},{"$f":"IF('Δεδομένα υποψηφίου'!L42=\"\",\"\",'Δεδομένα υποψηφίου'!L42)","v":""},{"$f":"IF('Δεδομένα υποψηφίου'!M42=\"\",\"\",'Δεδομένα υποψηφίου'!M42)","v":""}]
[{"$f":"IF('Δεδομένα υποψηφίου'!A43=\"\",\"\",'Δεδομένα υποψηφίου'!A43)","v":""},{"$f":"IF('Δεδομένα υποψηφίου'!B43=\"\",\"\",'Δεδομένα υποψηφίου'!B43)","v":""},{"$f":"IF('Δεδομένα υποψηφίου'!C43=\"\",\"\",'Δεδομένα υποψηφίου'!C43)","v":""},{"$f":"IF('Δεδομένα υποψηφίου'!D43=\"\",\"\",'Δεδομένα υποψηφίου'!D43)","v":""},{"$nulls":6},{"$f":"IF('Δεδομένα υποψηφίου'!L43=\"\",\"\",'Δεδομένα υποψηφίου'!L43)","v":""},{"$f":"IF('Δεδομένα υποψηφίου'!M43=\"\",\"\",'Δεδομένα υποψηφίου'!M43)","v":""}]
[{"$f":"IF('Δεδομένα υποψηφίου'!A44=\"\",\"\",'Δεδομένα υποψηφίου'!A44)","v":""},{"$f":"IF('Δεδομένα υποψηφίου'!B44=\"\",\"\",'Δεδομένα υποψηφίου'!B44)","v":""},{"$f":"IF('Δεδομένα υποψηφίου'!C44=\"\",\"\",'Δεδομένα υποψηφίου'!C44)","v":""},{"$f":"IF('Δεδομένα υποψηφίου'!D44=\"\",\"\",'Δεδομένα υποψηφίου'!D44)","v":""},{"$nulls":6},{"$f":"IF('Δεδομένα υποψηφίου'!L44=\"\",\"\",'Δεδομένα υποψηφίου'!L44)","v":""},{"$f":"IF('Δεδομένα υποψηφίου'!M44=\"\",\"\",'Δεδομένα υποψηφίου'!M44)","v":""}]
[{"$f":"IF('Δεδομένα υποψηφίου'!A45=\"\",\"\",'Δεδομένα υποψηφίου'!A45)","v":""},{"$f":"IF('Δεδομένα υποψηφίου'!B45=\"\",\"\",'Δεδομένα υποψηφίου'!B45)","v":""},{"$f":"IF('Δεδομένα υποψηφίου'!C45=\"\",\"\",'Δεδομένα υποψηφίου'!C45)","v":""},{"$f":"IF('Δεδομένα υποψηφίου'!D45=\"\",\"\",'Δεδομένα υποψηφίου'!D45)","v":""},{"$nulls":6},{"$f":"IF('Δεδομένα υποψηφίου'!L45=\"\",\"\",'Δεδομένα υποψηφίου'!L45)","v":""},{"$f":"IF('Δεδομένα υποψηφίου'!M45=\"\",\"\",'Δεδομένα υποψηφίου'!M45)","v":""}]
[{"$f":"IF('Δεδομένα υποψηφίου'!A46=\"\",\"\",'Δεδομένα υποψηφίου'!A46)","v":""},{"$f":"IF('Δεδομένα υποψηφίου'!B46=\"\",\"\",'Δεδομένα υποψηφίου'!B46)","v":""},{"$f":"IF('Δεδομένα υποψηφίου'!C46=\"\",\"\",'Δεδομένα υποψηφίου'!C46)","v":""},{"$f":"IF('Δεδομένα υποψηφίου'!D46=\"\",\"\",'Δεδομένα υποψηφίου'!D46)","v":""},{"$nulls":6},{"$f":"IF('Δεδομένα υποψηφίου'!L46=\"\",\"\",'Δεδομένα υποψηφίου'!L46)","v":""},{"$f":"IF('Δεδομένα υποψηφίου'!M46=\"\",\"\",'Δεδομένα υποψηφίου'!M46)","v":""}]
[{"$f":"IF('Δεδομένα υποψηφίου'!A47=\"\",\"\",'Δεδομένα υποψηφίου'!A47)","v":""},{"$f":"IF('Δεδομένα υποψηφίου'!B47=\"\",\"\",'Δεδομένα υποψηφίου'!B47)","v":""},{"$f":"IF('Δεδομένα υποψηφίου'!C47=\"\",\"\",'Δεδομένα υποψηφίου'!C47)","v":""},{"$f":"IF('Δεδομένα υποψηφίου'!D47=\"\",\"\",'Δεδομένα υποψηφίου'!D47)","v":""},{"$nulls":6},{"$f":"IF('Δεδομένα υποψηφίου'!L47=\"\",\"\",'Δεδομένα υποψηφίου'!L47)","v":""},{"$f":"IF('Δεδομένα υποψηφίου'!M47=\"\",\"\",'Δεδομένα υποψηφίου'!M47)","v":""}]
[{"$f":"IF('Δεδομένα υποψηφίου'!A48=\"\",\"\",'Δεδομένα υποψηφίου'!A48)","v":""},{"$f":"IF('Δεδομένα υποψηφίου'!B48=\"\",\"\",'Δεδομένα υποψηφίου'!B48)","v":""},{"$f":"IF('Δεδομένα υποψηφίου'!C48=\"\",\"\",'Δεδομένα υποψηφίου'!C48)","v":""},{"$f":"IF('Δεδομένα υποψηφίου'!D48=\"\",\"\",'Δεδομένα υποψηφίου'!D48)","v":""},{"$nulls":6},{"$f":"IF('Δεδομένα υποψηφίου'!L48=\"\",\"\",'Δεδομένα υποψηφίου'!L48)","v":""},{"$f":"IF('Δεδομένα υποψηφίου'!M48=\"\",\"\",'Δεδομένα υποψηφίου'!M48)","v":""}]
[{"$f":"IF('Δεδομένα υποψηφίου'!A49=\"\",\"\",'Δεδομένα υποψηφίου'!A49)","v":""},{"$f":"IF('Δεδομένα υποψηφίου'!B49=\"\",\"\",'Δεδομένα υποψηφίου'!B49)","v":""},{"$f":"IF('Δεδομένα υποψηφίου'!C49=\"\",\"\",'Δεδομένα υποψηφίου'!C49)","v":""},{"$f":"IF('Δεδομένα υποψηφίου'!D49=\"\",\"\",'Δεδομένα υποψηφίου'!D49)","v":""},{"$nulls":6},{"$f":"IF('Δεδομένα υποψηφίου'!L49=\"\",\"\",'Δεδομένα υποψηφίου'!L49)","v":""},{"$f":"IF('Δεδομένα υποψηφίου'!M49=\"\",\"\",'Δεδομένα υποψηφίου'!M49)","v":""}]
[{"$f":"IF('Δεδομένα υποψηφίου'!A50=\"\",\"\",'Δεδομένα υποψηφίου'!A50)","v":""},{"$f":"IF('Δεδομένα υποψηφίου'!B50=\"\",\"\",'Δεδομένα υποψηφίου'!B50)","v":""},{"$f":"IF('Δεδομένα υποψηφίου'!C50=\"\",\"\",'Δεδομένα υποψηφίου'!C50)","v":""},{"$f":"IF('Δεδομένα υποψηφίου'!D50=\"\",\"\",'Δεδομένα υποψηφίου'!D50)","v":""},{"$nulls":6},{"$f":"IF('Δεδομένα υποψηφίου'!L50=\"\",\"\",'Δεδομένα υποψηφίου'!L50)","v":""},{"$f":"IF('Δεδομένα υποψηφίου'!M50=\"\",\"\",'Δεδομένα υποψηφίου'!M50)","v":""}]
[{"$f":"IF('Δεδομένα υποψηφίου'!A51=\"\",\"\",'Δεδομένα υποψηφίου'!A51)","v":""},{"$f":"IF('Δεδομένα υποψηφίου'!B51=\"\",\"\",'Δεδομένα υποψηφίου'!B51)","v":""},{"$f":"IF('Δεδομένα υποψηφίου'!C51=\"\",\"\",'Δεδομένα υποψηφίου'!C51)","v":""},{"$f":"IF('Δεδομένα υποψηφίου'!D51=\"\",\"\",'Δεδομένα υποψηφίου'!D51)","v":""},{"$nulls":6},{"$f":"IF('Δεδομένα υποψηφίου'!L51=\"\",\"\",'Δεδομένα υποψηφίου'!L51)","v":""},{"$f":"IF('Δεδομένα υποψηφίου'!M51=\"\",\"\",'Δεδομένα υποψηφίου'!M51)","v":""}]
[{"$f":"IF('Δεδομένα υποψηφίου'!A52=\"\",\"\",'Δεδομένα υποψηφίου'!A52)","v":""},{"$f":"IF('Δεδομένα υποψηφίου'!B52=\"\",\"\",'Δεδομένα υποψηφίου'!B52)","v":""},{"$f":"IF('Δεδομένα υποψηφίου'!C52=\"\",\"\",'Δεδομένα υποψηφίου'!C52)","v":""},{"$f":"IF('Δεδομένα υποψηφίου'!D52=\"\",\"\",'Δεδομένα υποψηφίου'!D52)","v":""},{"$nulls":6},{"$f":"IF('Δεδομένα υποψηφίου'!L52=\"\",\"\",'Δεδομένα υποψηφίου'!L52)","v":""},{"$f":"IF('Δεδομένα υποψηφίου'!M52=\"\",\"\",'Δεδομένα υποψηφίου'!M52)","v":""}]
[{"$f":"IF('Δεδομένα υποψηφίου'!A53=\"\",\"\",'Δεδομένα υποψηφίου'!A53)","v":""},{"$f":"IF('Δεδομένα υποψηφίου'!B53=\"\",\"\",'Δεδομένα υποψηφίου'!B53)","v":""},{"$f":"IF('Δεδομένα υποψηφίου'!C53=\"\",\"\",'Δεδομένα υποψηφίου'!C53)","v":""},{"$f":"IF('Δεδομένα υποψηφίου'!D53=\"\",\"\",'Δεδομένα υποψηφίου'!D53)","v":""},{"$nulls":6},{"$f":"IF('Δεδομένα υποψηφίου'!L53=\"\",\"\",'Δεδομένα υποψηφίου'!L53)","v":""},{"$f":"IF('Δεδομένα υποψηφίου'!M53=\"\",\"\",'Δεδομένα υποψηφίου'!M53)","v":""}]
[{"$f":"IF('Δεδομένα υποψηφίου'!A54=\"\",\"\",'Δεδομένα υποψηφίου'!A54)","v":""},{"$f":"IF('Δεδομένα υποψηφίου'!B54=\"\",\"\",'Δεδομένα υποψηφίου'!B54)","v":""},{"$f":"IF('Δεδομένα υποψηφίου'!C54=\"\",\"\",'Δεδομένα υποψηφίου'!C54)","v":""},{"$f":"IF('Δεδομένα υποψηφίου'!D54=\"\",\"\",'Δεδομένα υποψηφίου'!D54)","v":""},{"$nulls":6},{"$f":"IF('Δεδομένα υποψηφίου'!L54=\"\",\"\",'Δεδομένα υποψηφίου'!L54)","v":""},{"$f":"IF('Δεδομένα υποψηφίου'!M54=\"\",\"\",'Δεδομένα υποψηφίου'!M54)","v":""}]
[{"$f":"IF('Δεδομένα υποψηφίου'!A55=\"\",\"\",'Δεδομένα υποψηφίου'!A55)","v":""},{"$f":"IF('Δεδομένα υποψηφίου'!B55=\"\",\"\",'Δεδομένα υποψηφίου'!B55)","v":""},{"$f":"IF('Δεδομένα υποψηφίου'!C55=\"\",\"\",'Δεδομένα υποψηφίου'!C55)","v":""},{"$f":"IF('Δεδομένα υποψηφίου'!D55=\"\",\"\",'Δεδομένα υποψηφίου'!D55)","v":""},{"$nulls":6},{"$f":"IF('Δεδομένα υποψηφίου'!L55=\"\",\"\",'Δεδομένα υποψηφίου'!L55)","v":""},{"$f":"IF('Δεδομένα υποψηφίου'!M55=\"\",\"\",'Δεδομένα υποψηφίου'!M55)","v":""}]
[{"$f":"IF('Δεδομένα υποψηφίου'!A56=\"\",\"\",'Δεδομένα υποψηφίου'!A56)","v":""},{"$f":"IF('Δεδομένα υποψηφίου'!B56=\"\",\"\",'Δεδομένα υποψηφίου'!B56)","v":""},{"$f":"IF('Δεδομένα υποψηφίου'!C56=\"\",\"\",'Δεδομένα υποψηφίου'!C56)","v":""},{"$f":"IF('Δεδομένα υποψηφίου'!D56=\"\",\"\",'Δεδομένα υποψηφίου'!D56)","v":""},{"$nulls":6},{"$f":"IF('Δεδομένα υποψηφίου'!L56=\"\",\"\",'Δεδομένα υποψηφίου'!L56)","v":""},{"$f":"IF('Δεδομένα υποψηφίου'!M56=\"\",\"\",'Δεδομένα υποψηφίου'!M56)","v":""}]
[{"$f":"IF('Δεδομένα υποψηφίου'!A57=\"\",\"\",'Δεδομένα υποψηφίου'!A57)","v":""},{"$f":"IF('Δεδομένα υποψηφίου'!B57=\"\",\"\",'Δεδομένα υποψηφίου'!B57)","v":""},{"$f":"IF('Δεδομένα υποψηφίου'!C57=\"\",\"\",'Δεδομένα υποψηφίου'!C57)","v":""},{"$f":"IF('Δεδομένα υποψηφίου'!D57=\"\",\"\",'Δεδομένα υποψηφίου'!D57)","v":""},{"$nulls":6},{"$f":"IF('Δεδομένα υποψηφίου'!L57=\"\",\"\",'Δεδομένα υποψηφίου'!L57)","v":""},{"$f":"IF('Δεδομένα υποψηφίου'!M57=\"\",\"\",'Δεδομένα υποψηφίου'!M57)","v":""}]
[{"$f":"IF('Δεδομένα υποψηφίου'!A58=\"\",\"\",'Δεδομένα υποψηφίου'!A58)","v":""},{"$f":"IF('Δεδομένα υποψηφίου'!B58=\"\",\"\",'Δεδομένα υποψηφίου'!B58)","v":""},{"$f":"IF('Δεδομένα υποψηφίου'!C58=\"\",\"\",'Δεδομένα υποψηφίου'!C58)","v":""},{"$f":"IF('Δεδομένα υποψηφίου'!D58=\"\",\"\",'Δεδομένα υποψηφίου'!D58)","v":""},{"$nulls":6},{"$f":"IF('Δεδομένα υποψηφίου'!L58=\"\",\"\",'Δεδομένα υποψηφίου'!L58)","v":""},{"$f":"IF('Δεδομένα υποψηφίου'!M58=\"\",\"\",'Δεδομένα υποψηφίου'!M58)","v":""}]
[{"$f":"IF('Δεδομένα υποψηφίου'!A59=\"\",\"\",'Δεδομένα υποψηφίου'!A59)","v":""},{"$f":"IF('Δεδομένα υποψηφίου'!B59=\"\",\"\",'Δεδομένα υποψηφίου'!B59)","v":""},{"$f":"IF('Δεδομένα υποψηφίου'!C59=\"\",\"\",'Δεδομένα υποψηφίου'!C59)","v":""},{"$f":"IF('Δεδομένα υποψηφίου'!D59=\"\",\"\",'Δεδομένα υποψηφίου'!D59)","v":""},{"$nulls":6},{"$f":"IF('Δεδομένα υποψηφίου'!L59=\"\",\"\",'Δεδομένα υποψηφίου'!L59)","v":""},{"$f":"IF('Δεδομένα υποψηφίου'!M59=\"\",\"\",'Δεδομένα υποψηφίου'!M59)","v":""}]